fUSD/lending_fUSD_20250108
["ID","MTS","AMOUNT","RATE_DAILY","PERIOD"]
[348143339,1736352659302,-2228.26,0.00011368,2]
[348143340,1736352659311,-500.0,0.00011368,2]
[348143341,1736352659321,-1128.88,0.00011368,2]
[348143342,1736352659330,-878.65,0.00011369,2]
[348143343,1736352659339,-648.35,0.00011369,2]
[348143344,1736352659348,-513.36,0.00011369,2]
[348143345,1736352659358,-578.92,0.00011369,2]
[348143346,1736352659368,-1749.25,0.00011369,2]
[348143347,1736352659377,-794.1,0.00011369,2]
[348143348,1736352659386,-547.31,0.00011369,2]
[348143349,1736352659396,-500.0,0.00011369,2]
[348143350,1736352659406,-500.0,0.00011369,2]
[348143351,1736352659415,-620.23,0.00011369,2]
[348143352,1736352659425,-512.95,0.00011369,2]
[348143353,1736352659435,-508.77,0.00011369,2]
[348143354,1736352659448,-508.77,0.00011369,2]
[348143355,1736352659458,-511.61,0.00011369,2]
[348143356,1736352659468,-1113.73,0.00011369,2]
[348143357,1736352659477,-1300.74,0.00011369,2]
[348143358,1736352659487,-2529.33,0.00011369,2]
[348143359,1736352659497,-6224.74,0.00011369,2]
[348143360,1736352659507,-519.52,0.00011369,2]
[348143361,1736352659516,-500.0,0.00011369,2]
[348143362,1736352659526,-500.0,0.00011369,2]
[348143363,1736352659535,-717.77,0.00011369,2]
[348143364,1736352659545,-581.47,0.00011369,2]
[348143365,1736352659554,-150.0,0.00011409,2]
[348143366,1736352659563,-150.0,0.00011443,2]
[348143367,1736352659573,-574.99655293,0.00011452,2]
[348143368,1736352659582,-362.49082478,0.00011507,2]
[348143369,1736352659899,-1000.7,0.00011507,2]
[348143370,1736352659921,-1387.80917522,0.00011507,2]
[348143371,1736352659930,-950.28,0.00011515,2]
[348143372,1736352659941,-516.31,0.00011525,2]
[348143373,1736352659954,-500.0,0.00011525,2]
[348143374,1736352659965,-500.0,0.00011525,2]
[348143375,1736352659975,-500.0,0.00011525,2]
[348143376,1736352659984,-500.0,0.00011525,2]
[348143377,1736352659993,-500.0,0.00011525,2]
[348143378,1736352660003,-157.1,0.00011525,2]
[348143379,1736352660012,-500.0,0.00011525,2]
[348143380,1736352660023,-500.0,0.00011525,2]
[348143381,1736352660033,-206.13,0.00011525,2]
[348143382,1736352660043,-826.65,0.00011525,2]
[348143383,1736352660054,-323.82,0.00011525,2]
[348143384,1736352660064,-500.0,0.00011525,2]
[348143385,1736352660074,-500.0,0.00011525,2]
[348143386,1736352660085,-500.0,0.00011525,2]
[348143387,1736352660095,-500.0,0.00011525,2]
[348143388,1736352660105,-500.0,0.00011525,2]
[348143389,1736352660115,-500.0,0.00011525,2]
[348143390,1736352660125,-395.20621757,0.00011525,2]
[348143391,1736352660135,-429.4778518,0.00011525,2]
[348143392,1736352660145,-593.83,0.00011525,2]
[348143393,1736352660155,-500.0,0.00011525,2]
[348143394,1736352660166,-221.70140805,0.00011525,2]
[348143395,1736352660176,-500.0,0.00011525,2]
[348143396,1736352660186,-500.0,0.00011525,2]
[348143397,1736352660198,-500.0,0.00011525,2]
[348143398,1736352660209,-549.84,0.00011525,2]
[348143399,1736352660219,-691.21,0.00011525,2]
[348143400,1736352660228,-530.26,0.00011525,2]
[348143401,1736352660237,-500.0,0.00011525,2]
[348143402,1736352660246,-293.07896265,0.00011525,2]
[348143403,1736352660255,-500.0,0.00011525,2]
[348143404,1736352660264,-601.54,0.00011525,2]
[348143405,1736352660273,-500.0,0.00011525,2]
[348143406,1736352660283,-204.47916836,0.00011525,2]
[348143407,1736352660295,-432.36474677,0.00011525,2]
[348143408,1736352660304,-500.0,0.00011525,2]
[348143409,1736352660441,-500.0,0.00011525,2]
[348143410,1736352660454,-500.0,0.00011525,2]
[348143411,1736352660464,-548.14,0.00011525,2]
[348143412,1736352660473,-500.0,0.00011525,2]
[348143413,1736352660482,-500.0,0.00011525,2]
[348143414,1736352660492,-500.0,0.00011525,2]
[348143415,1736352660501,-500.0,0.00011525,2]
[348143416,1736352660511,-500.0,0.00011525,2]
[348143417,1736352660520,-500.0,0.00011525,2]
[348143418,1736352660530,-500.0,0.00011525,2]
[348143419,1736352660539,-500.0,0.00011525,2]
[348143420,1736352660549,-500.0,0.00011525,2]
[348143421,1736352660559,-500.0,0.00011525,2]
[348143422,1736352660569,-500.0,0.00011525,2]
[348143423,1736352660579,-528.44,0.00011525,2]
[348143424,1736352660589,-586.23,0.00011525,2]
[348143425,1736352660598,-500.0,0.00011525,2]
[348143426,1736352660607,-500.0,0.00011525,2]
[348143427,1736352660617,-502.9493649,0.00011525,2]
[348143428,1736352660627,-500.0,0.00011525,2]
[348143429,1736352660637,-500.0,0.00011525,2]
[348143430,1736352660647,-500.0,0.00011525,2]
[348143431,1736352660656,-500.0,0.00011525,2]
[348143432,1736352660666,-500.0,0.00011525,2]
[348143433,1736352660675,-500.0,0.00011525,2]
[348143434,1736352660685,-500.0,0.00011525,2]
[348143435,1736352660697,-500.0,0.00011525,2]
[348143436,1736352660706,-512.41,0.00011525,2]
[348143437,1736352660715,-500.0,0.00011525,2]
[348143438,1736352660725,-500.0,0.00011525,2]
[348143439,1736352660734,-42.40481348,0.00011525,2]
[348143440,1736352660746,-457.59518652,0.00011525,2]
[348143441,1736352660755,-464.54187545,0.00011525,2]
[348143442,1736352660765,-500.0,0.00011525,2]
[348143443,1736352660777,-500.0,0.00011525,2]
[348143444,1736352660787,-277.23,0.00011525,2]
[348143445,1736352660797,-530.28,0.00011525,2]
[348143446,1736352660806,-413.3,0.00011525,2]
[348143447,1736352660815,-500.0,0.00011525,2]
[348143448,1736352660825,-413.25,0.00011525,2]
[348143449,1736352660834,-500.0,0.00011525,2]
[348143450,1736352660844,-564.90079383,0.00011525,2]
[348143451,1736352660853,-500.0,0.00011525,2]
[348143452,1736352660863,-525.49,0.00011525,2]
[348143453,1736352660872,-256.28,0.00011525,2]
[348143454,1736352660882,-500.0,0.00011525,2]
[348143455,1736352660891,-500.0,0.00011525,2]
[348143456,1736352660900,-500.0,0.00011525,2]
[348143457,1736352660909,-500.0,0.00011525,2]
[348143458,1736352660919,-500.0,0.00011525,2]
[348143459,1736352660928,-2668.38,0.00011525,2]
[348143460,1736352660937,-500.0,0.00011525,2]
[348143461,1736352660951,-343.35,0.00011525,2]
[348143462,1736352660962,-500.0,0.00011525,2]
[348143463,1736352660973,-500.0,0.00011525,2]
[348143464,1736352660983,-2131.07,0.00011525,2]
[348143465,1736352660992,-500.0,0.00011525,2]
[348143466,1736352661002,-500.0,0.00011525,2]
[348143467,1736352661011,-500.0,0.00011525,2]
[348143468,1736352661021,-1705.4895184,0.00011525,2]
[348143469,1736352661044,-737.8604816,0.00011525,2]
[348143470,1736352661054,-500.0,0.00011525,2]
[348143471,1736352661064,-500.0,0.00011525,2]
[348143472,1736352661074,-167.9367024,0.00011525,2]
[348143473,1736352661430,-500.0,0.00010267,2]
[348143474,1736352661447,-500.0,0.00010429,2]
[348143475,1736352661464,-500.0,0.00010541,2]
[348143476,1736352661480,-271.28400005,0.00010703,2]
[348143477,1736352661502,-228.71599995,0.00010703,2]
[348143478,1736352661519,-500.0,0.00010703,2]
[348143479,1736352661536,-332.0632976,0.00011525,2]
[348143480,1736352661551,-500.0,0.00011525,2]
[348143481,1736352661566,-500.0,0.00011525,2]
[348143482,1736352661581,-215.58,0.00011525,2]
[348143483,1736352661596,-369.18608865,0.00011525,2]
[348143484,1736352661612,-500.0,0.00011525,2]
[348143485,1736352661623,-500.0,0.00011525,2]
[348143486,1736352661638,-280.40353016,0.00011525,2]
[348143487,1736352661650,-500.0,0.00011525,2]
[348143488,1736352661666,-500.0,0.00011525,2]
[348143489,1736352661681,-554.64,0.00011525,2]
[348143490,1736352661695,-570.57,0.00011525,2]
[348143491,1736352661709,-500.0,0.00011525,2]
[348143492,1736352661722,-500.0,0.00011525,2]
[348143493,1736352661736,-500.0,0.00011525,2]
[348143494,1736352661749,-220.46132942,0.00011525,2]
[348143495,1736352661835,-279.53867058,0.00011525,2]
[348143496,1736352661850,-544.77,0.00011525,2]
[348143497,1736352661865,-563.56,0.00011525,2]
[348143498,1736352661879,-562.2,0.00011525,2]
[348143499,1736352661892,-500.0,0.00011525,2]
[348143500,1736352661905,-500.0,0.00011526,2]
[348143501,1736352661918,-173.47247956,0.00011526,2]
[348143502,1736352661935,-247.33752044,0.00011526,2]
[348143503,1736352661951,-280.34,0.00011526,2]
[348143504,1736352661965,-296.74401638,0.00011526,2]
[348143505,1736352661978,-119.19446318,0.00011526,2]
[348143506,1736352661995,-380.80553682,0.00011526,2]
[348143507,1736352662008,-500.0,0.00011526,2]
[348143508,1736352662021,-500.0,0.00011526,2]
[348143509,1736352662035,-500.0,0.00011526,2]
[348143510,1736352662049,-561.13,0.00011526,2]
[348143511,1736352662061,-568.34,0.00011526,2]
[348143512,1736352662075,-512.23,0.00011526,2]
[348143513,1736352662089,-344.23,0.00011526,2]
[348143514,1736352662102,-659.16,0.00011526,2]
[348143515,1736352662116,-500.0,0.00011526,2]
[348143516,1736352662131,-500.0,0.00011526,2]
[348143517,1736352662145,-648.59,0.00011526,2]
[348143518,1736352662160,-659.51,0.00011526,2]
[348143519,1736352662173,-590.81,0.00011526,2]
[348143520,1736352662182,-500.0,0.00011526,2]
[348143521,1736352662193,-500.0,0.00011526,2]
[348143522,1736352662203,-500.0,0.00011526,2]
[348143523,1736352662212,-500.0,0.00011526,2]
[348143524,1736352662222,-500.0,0.00011526,2]
[348143525,1736352662232,-500.0,0.00011526,2]
[348143526,1736352662242,-500.0,0.00011526,2]
[348143527,1736352662252,-500.0,0.00011526,2]
[348143528,1736352662261,-500.0,0.00011526,2]
[348143529,1736352662271,-500.0,0.00011526,2]
[348143530,1736352662280,-500.0,0.00011526,2]
[348143531,1736352662290,-500.0,0.00011526,2]
[348143532,1736352662299,-500.0,0.00011526,2]
[348143533,1736352662308,-500.0,0.00011526,2]
[348143534,1736352662317,-500.0,0.00011526,2]
[348143535,1736352662326,-500.0,0.00011526,2]
[348143536,1736352662335,-500.0,0.00011526,2]
[348143537,1736352662344,-500.0,0.00011526,2]
[348143538,1736352662353,-500.0,0.00011526,2]
[348143539,1736352662363,-500.0,0.00011526,2]
[348143540,1736352662372,-768.47,0.00011526,2]
[348143541,1736352662381,-500.0,0.00011526,2]
[348143542,1736352662391,-633.26,0.00011526,2]
[348143543,1736352662401,-579.27,0.00011526,2]
[348143544,1736352662410,-500.0,0.00011526,2]
[348143545,1736352662419,-500.0,0.00011526,2]
[348143546,1736352662429,-500.0,0.00011526,2]
[348143547,1736352662439,-914.5,0.00011526,2]
[348143548,1736352662451,-500.0,0.00011526,2]
[348143549,1736352662461,-806.67,0.00011526,2]
[348143550,1736352662470,-734.32,0.00011526,2]
[348143551,1736352662480,-761.59,0.00011526,2]
[348143552,1736352662490,-1261.52,0.00011526,2]
[348143553,1736352662501,-991.6,0.00011527,2]
[348143554,1736352662511,-150.0,0.00011538,2]
[348143555,1736352662521,-574.99655293,0.00011555,2]
[348143556,1736352662530,-1440.48,0.00011636,2]
[348143557,1736352662540,-1455.38,0.00011636,2]
[348143558,1736352662550,-1264.52,0.00011636,2]
[348143559,1736352662559,-572.19,0.00011636,2]
[348143560,1736352662570,-2007.1,0.00011636,2]
[348143561,1736352662580,-660.55,0.00011636,2]
[348143562,1736352662919,-500.0,0.00011636,2]
[348143563,1736352662938,-500.0,0.00011636,2]
[348143564,1736352662959,-500.0,0.00011636,2]
[348143565,1736352662968,-500.0,0.00011637,2]
[348143566,1736352662978,-159.07624546,0.00011637,2]
[348143567,1736352662987,-373.19,0.00011637,2]
[348143568,1736352662997,-500.0,0.00011637,2]
[348143569,1736352663007,-1679.05,0.00011637,2]
[348143570,1736352663016,-754.56,0.00011638,2]
[348143571,1736352663025,-626.68,0.00011638,2]
[348143572,1736352663035,-805.63,0.00011638,2]
[348143573,1736352663044,-398.57,0.00011638,2]
[348143574,1736352663054,-598.69,0.00011638,2]
[348143575,1736352663065,-500.0,0.00011638,2]
[348143576,1736352663075,-1515.22,0.00011638,2]
[348143577,1736352663085,-500.0,0.00011641,2]
[348143578,1736352663095,-1943.57,0.00011642,2]
[348143579,1736352663104,-500.0,0.00011642,2]
[348143580,1736352663114,-567.01,0.00011642,2]
[348143581,1736352663123,-500.0,0.00011642,2]
[348143582,1736352663134,-500.0,0.00011642,2]
[348143583,1736352663144,-500.0,0.00011642,2]
[348143584,1736352663154,-500.0,0.00011642,2]
[348143585,1736352663163,-853.64,0.00011642,2]
[348143586,1736352663173,-500.0,0.00011642,2]
[348143587,1736352663182,-1291.73,0.00011642,2]
[348143588,1736352663192,-599.43,0.00011642,2]
[348143589,1736352663204,-500.0,0.00011642,2]
[348143590,1736352663214,-1479.14,0.00011642,2]
[348143591,1736352663224,-500.0,0.00011642,2]
[348143592,1736352663233,-500.0,0.00011642,2]
[348143593,1736352663243,-2977.8,0.00011642,2]
[348143594,1736352663252,-1738.29,0.00011642,2]
[348143595,1736352663262,-500.0,0.00011642,2]
[348143596,1736352663272,-500.0,0.00011642,2]
[348143597,1736352663282,-697.86,0.00011642,2]
[348143598,1736352663292,-500.0,0.00011642,2]
[348143599,1736352663302,-613.79,0.00011642,2]
[348143600,1736352663312,-733.89,0.00011642,2]
[348143601,1736352663322,-1103.04,0.00011642,2]
[348143602,1736352663332,-1758.74,0.00011642,2]
[348143603,1736352663342,-3172.64,0.00011642,2]
[348143604,1736352663352,-2913.58,0.00011642,2]
[348143605,1736352663361,-736.69,0.00011642,2]
[348143606,1736352663371,-1379.35,0.00011642,2]
[348143607,1736352663380,-500.0,0.00011642,2]
[348143608,1736352663390,-500.0,0.00011642,2]
[348143609,1736352663400,-500.0,0.00011642,2]
[348143610,1736352663409,-877.87,0.00011642,2]
[348143611,1736352663419,-1578.21,0.00011642,2]
[348143612,1736352663428,-1066.6,0.00011642,2]
[348143613,1736352663438,-1192.36,0.00011642,2]
[348143614,1736352663450,-565.28,0.00011642,2]
[348143615,1736352663460,-886.329597,0.00011642,2]
[348143616,1736352663470,-827.569931,0.00011642,2]
[348143617,1736352663479,-2228.26,0.00011642,2]
[348143618,1736352663489,-500.0,0.00011642,2]
[348143619,1736352663498,-1128.88,0.00011642,2]
[348143620,1736352663508,-878.65,0.00011643,2]
[348143621,1736352663517,-648.35,0.00011643,2]
[348143622,1736352663527,-513.36,0.00011643,2]
[348143623,1736352663537,-578.92,0.00011643,2]
[348143624,1736352663546,-1749.25,0.00011643,2]
[348143625,1736352663556,-794.1,0.00011643,2]
[348143626,1736352663566,-547.31,0.00011643,2]
[348143627,1736352663575,-500.0,0.00011643,2]
[348143628,1736352663585,-620.23,0.00011643,2]
[348143629,1736352663595,-512.95,0.00011643,2]
[348143630,1736352663605,-508.77,0.00011643,2]
[348143631,1736352663615,-508.77,0.00011643,2]
[348143632,1736352663624,-511.61,0.00011643,2]
[348143633,1736352663633,-1113.73,0.00011643,2]
[348143634,1736352663643,-1300.74,0.00011643,2]
[348143635,1736352663653,-2529.33,0.00011643,2]
[348143636,1736352663663,-6224.74,0.00011643,2]
[348143637,1736352663672,-519.52,0.00011643,2]
[348143638,1736352663681,-500.0,0.00011643,2]
[348143639,1736352663691,-748.98,0.00011643,2]
[348143640,1736352663703,-717.77,0.00011643,2]
[348143641,1736352663713,-581.47,0.00011643,2]
[348143642,1736352663722,-574.99655293,0.00011659,2]
[348143643,1736352663732,-150.0,0.0001166,2]
[348143644,1736352663742,-232.989,0.0001167,2]
[348143645,1736352663751,-600.0,0.00011672,2]
[348143646,1736352663761,-179.256,0.00011701,2]
[348143647,1736352663771,-1000.0,0.00011716,2]
[348143648,1736352663784,-574.99655293,0.00011762,2]
[348143649,1736352663794,-2839.049,0.0001178,2]
[348143650,1736352663804,-500.0,0.0001178,2]
[348143651,1736352663815,-500.0,0.0001178,2]
[348143652,1736352663824,-500.0,0.0001178,2]
[348143653,1736352663833,-500.0,0.0001178,2]
[348143654,1736352663843,-150.0,0.00011783,2]
[348143655,1736352663854,-500.0,0.00011799,2]
[348143656,1736352663863,-500.0,0.00011799,2]
[348143657,1736352663873,-500.0,0.00011799,2]
[348143658,1736352663882,-500.0,0.00011799,2]
[348143659,1736352663893,-250.07,0.00011799,2]
[348143660,1736352663902,-826.65,0.00011799,2]
[348143661,1736352663912,-500.0,0.00011799,2]
[348143662,1736352663922,-500.0,0.00011799,2]
[348143663,1736352663931,-500.0,0.00011799,2]
[348143664,1736352663941,-500.0,0.00011799,2]
[348143665,1736352663952,-500.0,0.00011799,2]
[348143666,1736352663964,-500.0,0.00011799,2]
[348143667,1736352663974,-501.92,0.00011799,2]
[348143668,1736352663984,-691.21,0.00011799,2]
[348143669,1736352663995,-500.0,0.00011799,2]
[348143670,1736352664005,-500.0,0.00011799,2]
[348143671,1736352664014,-468.21,0.00011799,2]
[348143672,1736352664024,-500.0,0.00011799,2]
[348143673,1736352664034,-443.35,0.00011799,2]
[348143674,1736352664044,-500.0,0.00011799,2]
[348143675,1736352664054,-237.96,0.00011799,2]
[348143676,1736352664063,-495.51,0.00011799,2]
[348143677,1736352664073,-500.0,0.00011799,2]
[348143678,1736352664083,-500.0,0.00011799,2]
[348143679,1736352664093,-500.0,0.00011799,2]
[348143680,1736352664103,-295.96,0.00011799,2]
[348143681,1736352664113,-500.0,0.00011799,2]
[348143682,1736352664123,-586.23,0.00011799,2]
[348143683,1736352664133,-500.0,0.00011799,2]
[348143684,1736352664142,-500.0,0.00011799,2]
[348143685,1736352664152,-633.09,0.00011799,2]
[348143686,1736352664161,-500.0,0.00011799,2]
[348143687,1736352664171,-500.0,0.00011799,2]
[348143688,1736352664181,-500.0,0.00011799,2]
[348143689,1736352664190,-574.53,0.00011799,2]
[348143690,1736352664201,-500.0,0.00011799,2]
[348143691,1736352664211,-512.41,0.00011799,2]
[348143692,1736352664221,-500.0,0.00011799,2]
[348143693,1736352664231,-500.0,0.00011799,2]
[348143694,1736352664241,-500.0,0.00011799,2]
[348143695,1736352664250,-500.0,0.00011799,2]
[348143696,1736352664260,-508.71221817,0.00011799,2]
[348143697,1736352664269,-603.89,0.00011799,2]
[348143698,1736352664279,-500.0,0.00011799,2]
[348143699,1736352664289,-500.0,0.00011799,2]
[348143700,1736352664298,-500.0,0.00011799,2]
[348143701,1736352664308,-362.33,0.00011799,2]
[348143702,1736352664318,-500.0,0.00011799,2]
[348143703,1736352664327,-500.0,0.00011799,2]
[348143704,1736352664337,-500.0,0.00011799,2]
[348143705,1736352664346,-2668.38,0.00011799,2]
[348143706,1736352664356,-446.88724173,0.00011799,2]
[348143707,1736352664366,-500.0,0.00011799,2]
[348143708,1736352664376,-2131.07,0.00011799,2]
[348143709,1736352664385,-500.0,0.00011799,2]
[348143710,1736352664394,-500.0,0.00011799,2]
[348143711,1736352664404,-500.0,0.00011799,2]
[348143712,1736352664413,-2443.35,0.00011799,2]
[348143713,1736352664422,-500.0,0.00011799,2]
[348143714,1736352664431,-500.0,0.00011799,2]
[348143715,1736352664440,-500.0,0.00011799,2]
[348143716,1736352664450,-500.0,0.00011799,2]
[348143717,1736352664460,-500.0,0.00011799,2]
[348143718,1736352664469,-500.0,0.00011799,2]
[348143719,1736352664478,-500.0,0.00011799,2]
[348143720,1736352664488,-500.0,0.00011799,2]
[348143721,1736352664497,-500.0,0.00011799,2]
[348143722,1736352664506,-554.64,0.00011799,2]
[348143723,1736352664515,-459.68,0.00011799,2]
[348143724,1736352664524,-500.0,0.00011799,2]
[348143725,1736352664534,-500.0,0.00011799,2]
[348143726,1736352664543,-500.0,0.00011799,2]
[348143727,1736352664553,-544.77,0.00011799,2]
[348143728,1736352664562,-562.2,0.00011799,2]
[348143729,1736352664571,-500.0,0.00011799,2]
[348143730,1736352664580,-453.93219749,0.000118,2]
[348143731,1736352664589,-500.0,0.000118,2]
[348143732,1736352664598,-295.51,0.000118,2]
[348143733,1736352664608,-500.0,0.000118,2]
[348143734,1736352664617,-500.0,0.000118,2]
[348143735,1736352664626,-561.13,0.000118,2]
[348143736,1736352664636,-200.0,0.000118,2]
[348143737,1736352664645,-512.23,0.000118,2]
[348143738,1736352664654,-659.16,0.000118,2]
[348143739,1736352664663,-500.0,0.000118,2]
[348143740,1736352664673,-377.82,0.000118,2]
[348143741,1736352664682,-648.59,0.000118,2]
[348143742,1736352664691,-659.51,0.000118,2]
[348143743,1736352664702,-500.0,0.000118,2]
[348143744,1736352664712,-500.0,0.000118,2]
[348143745,1736352664721,-500.0,0.000118,2]
[348143746,1736352664730,-500.0,0.000118,2]
[348143747,1736352664740,-500.0,0.000118,2]
[348143748,1736352664750,-314.5,0.000118,2]
[348143749,1736352664760,-566.74,0.000118,2]
[348143750,1736352664775,-503.00746694,0.000118,2]
[348143751,1736352664786,-500.0,0.000118,2]
[348143752,1736352664795,-183.47169396,0.000118,2]
[348143753,1736352664806,-179.87,0.000118,2]
[348143754,1736352664816,-500.0,0.000118,2]
[348143755,1736352664826,-500.0,0.000118,2]
[348143756,1736352664836,-500.0,0.000118,2]
[348143757,1736352664847,-500.0,0.000118,2]
[348143758,1736352664857,-500.0,0.000118,2]
[348143759,1736352664868,-500.0,0.000118,2]
[348143760,1736352664879,-226.78,0.000118,2]
[348143761,1736352664888,-768.47,0.000118,2]
[348143762,1736352664898,-626.48,0.000118,2]
[348143763,1736352664907,-633.26,0.000118,2]
[348143764,1736352664916,-579.27,0.000118,2]
[348143765,1736352664926,-511.38,0.000118,2]
[348143766,1736352664935,-500.0,0.000118,2]
[348143767,1736352664944,-526.67,0.000118,2]
[348143768,1736352664956,-914.5,0.000118,2]
[348143769,1736352664967,-500.0,0.000118,2]
[348143770,1736352664977,-806.67,0.000118,2]
[348143771,1736352664987,-734.32,0.000118,2]
[348143772,1736352664996,-761.59,0.000118,2]
[348143773,1736352665006,-1261.52,0.000118,2]
[348143774,1736352665015,-991.6,0.00011801,2]
[348143775,1736352665025,-1000.0,0.00011817,2]
[348143776,1736352665034,-500.0,0.0001184,2]
[348143777,1736352665044,-2000.0,0.0001184,2]
[348143778,1736352665053,-500.0,0.0001184,2]
[348143779,1736352665063,-200.0,0.0001184,2]
[348143780,1736352665073,-574.99655293,0.00011866,2]
[348143781,1736352665083,-150.0,0.00011872,2]
[348143782,1736352665093,-1440.48,0.0001191,2]
[348143783,1736352665102,-1455.38,0.0001191,2]
[348143784,1736352665112,-1264.52,0.0001191,2]
[348143785,1736352665121,-572.19,0.0001191,2]
[348143786,1736352665131,-2007.1,0.0001191,2]
[348143787,1736352665140,-660.55,0.0001191,2]
[348143788,1736352665149,-500.0,0.0001191,2]
[348143789,1736352665159,-500.0,0.0001191,2]
[348143790,1736352665168,-500.0,0.0001191,2]
[348143791,1736352665177,-500.0,0.00011911,2]
[348143792,1736352665187,-1679.05,0.00011911,2]
[348143793,1736352665196,-754.56,0.00011912,2]
[348143794,1736352665206,-626.68,0.00011912,2]
[348143795,1736352665216,-805.63,0.00011912,2]
[348143796,1736352665225,-598.69,0.00011912,2]
[348143797,1736352665235,-500.0,0.00011912,2]
[348143798,1736352665244,-1515.22,0.00011912,2]
[348143799,1736352665254,-1943.57,0.00011916,2]
[348143800,1736352665263,-567.01,0.00011916,2]
[348143801,1736352665272,-500.0,0.00011916,2]
[348143802,1736352665282,-500.0,0.00011916,2]
[348143803,1736352665292,-853.64,0.00011916,2]
[348143804,1736352665301,-500.0,0.00011916,2]
[348143805,1736352665311,-1291.73,0.00011916,2]
[348143806,1736352665320,-599.43,0.00011916,2]
[348143807,1736352665330,-1479.14,0.00011916,2]
[348143808,1736352665339,-2977.8,0.00011916,2]
[348143809,1736352665348,-500.0,0.00011916,2]
[348143810,1736352665358,-1738.29,0.00011916,2]
[348143811,1736352665368,-500.0,0.00011916,2]
[348143812,1736352665378,-500.0,0.00011916,2]
[348143813,1736352665387,-697.86,0.00011916,2]
[348143814,1736352665396,-613.79,0.00011916,2]
[348143815,1736352665406,-733.89,0.00011916,2]
[348143816,1736352665415,-1103.04,0.00011916,2]
[348143817,1736352665425,-1758.74,0.00011916,2]
[348143818,1736352665434,-3172.64,0.00011916,2]
[348143819,1736352665444,-2913.58,0.00011916,2]
[348143820,1736352665454,-736.69,0.00011916,2]
[348143821,1736352665464,-1379.35,0.00011916,2]
[348143822,1736352665473,-500.0,0.00011916,2]
[348143823,1736352665483,-877.87,0.00011916,2]
[348143824,1736352665492,-1578.21,0.00011916,2]
[348143825,1736352665502,-1066.6,0.00011916,2]
[348143826,1736352665512,-1192.36,0.00011916,2]
[348143827,1736352665523,-565.28,0.00011916,2]
[348143828,1736352665534,-886.329597,0.00011916,2]
[348143829,1736352665544,-827.569931,0.00011916,2]
[348143830,1736352665554,-2228.26,0.00011916,2]
[348143831,1736352665564,-500.0,0.00011916,2]
[348143832,1736352665574,-1128.88,0.00011916,2]
[348143833,1736352665585,-1015.0,0.00011917,2]
[348143834,1736352665594,-878.65,0.00011917,2]
[348143835,1736352665603,-648.35,0.00011917,2]
[348143836,1736352665612,-513.36,0.00011917,2]
[348143837,1736352665621,-578.92,0.00011917,2]
[348143838,1736352665631,-1749.25,0.00011917,2]